bitfinex/quotes_ETHUSD_20250508
["timestamp","ask_amount","ask_price","bid_price","bid_amount"]
[1746707432587,5.07976764,1968.6,1968.3,3.65360322]
[1746707432779,5.08011255,1968.5,1968.3,3.65360322]
[1746707432981,5.07990804,1968.6,1968.3,3.65360322]
[1746707433220,5.07958999,1968.7,1968.3,8.78490095]
[1746707433393,5.07958999,1968.7,1968.4,0.8784901]
[1746707434118,5.07934948,1968.8,1968.5,3.0]
[1746707434119,5.07941256,1968.8,1968.5,3.0]
[1746707434494,5.07960988,1968.7,1968.5,3.0]
[1746707434909,5.0785127,1969.1,1968.8,3.0]
[1746707434910,5.07866566,1969.1,1968.8,3.0]
[1746707435091,5.07877483,1969.0,1968.7,3.0]
[1746707435290,5.078838,1969.0,1968.7,3.0]
[1746707435497,5.0791907,1968.9,1968.6,3.0]
[1746707435682,5.07889396,1969.0,1968.6,8.35996969]
[1746707435882,5.0789947,1968.9,1968.6,3.28024715]
[1746707436311,5.07930177,1968.8,1968.6,3.28024715]
[1746707437219,5.07768863,1969.4,1968.6,9.57351163]
[1746707437418,5.0788525,1969.0,1968.6,9.5735875]
[1746707437783,5.62754954,1969.5,1968.6,4.44313857]
[1746707438020,5.07885824,1969.0,1968.6,9.29330342]
[1746707438595,5.07794919,1969.3,1969.0,3.0]
[1746707438596,5.07816603,1969.3,1969.0,3.0]
[1746707438920,5.07825374,1969.2,1968.9,3.0]
[1746707439297,5.07816489,1969.3,1968.9,3.0]
[1746707439619,5.07816489,1969.3,1968.9,8.07892674]
[1746707439825,5.07816489,1969.3,1969.0,0.05078198]
[1746707440032,3.66666667,1970.3,1969.4,5.07748731]
[1746707440033,5.07665481,1969.9,1969.4,5.07748731]
[1746707440241,5.07665481,1969.9,1969.6,3.26866585]
[1746707440402,5.07662747,1969.9,1969.6,3.26866585]
[1746707441293,5.74215827,1970.3,1969.7,3.0]
[1746707441488,5.07630822,1970.0,1969.7,3.38410041]
[1746707441899,5.74214193,1970.3,1969.9,8.34487749]
[1746707442235,5.74214193,1970.3,1970.0,3.0]
[1746707442236,10.81773948,1970.3,1970.0,3.0]
[1746707442415,5.74214193,1970.3,1970.0,3.0]
[1746707442817,5.7420359,1970.3,1970.2,3.26866585]
[1746707443027,5.74204188,1970.3,1970.0,3.0]
[1746707443231,5.07564992,1970.2,1970.0,4.13450558]
[1746707443551,0.66666667,1970.3,1970.0,3.0]
[1746707443703,0.66666667,1970.3,1970.0,3.05075487]
[1746707443904,0.66666667,1970.3,1970.0,8.12670222]
[1746707444329,0.66666667,1970.3,1970.0,3.05075487]
[1746707444504,5.07588447,1970.1,1970.0,3.0]
[1746707444911,5.07588447,1970.1,1969.9,3.26866585]
[1746707445930,5.07609753,1970.1,1969.9,3.26866585]
[1746707446522,5.07614213,1970.0,1969.9,3.26866585]
[1746707447030,5.07602407,1970.1,1969.7,1.55707791]
[1746707447210,5.07665752,1969.8,1969.7,3.38410041]
[1746707447605,0.66666667,1970.3,1969.7,4.04937704]
[1746707447834,5.07588705,1970.1,1969.9,3.26866585]
[1746707448340,5.07573461,1970.2,1970.0,3.0]
[1746707448652,5.07571759,1970.2,1970.0,3.0]
[1746707448945,5.74214201,1970.3,1970.0,3.0]
[1746707449356,5.07649259,1969.9,1969.7,3.38410041]
[1746707449569,5.07655325,1969.9,1969.7,0.38410041]
[1746707449745,5.07655325,1969.9,1969.5,5.35459984]
[1746707449939,5.07655325,1969.9,1969.6,3.53545998]
[1746707450260,5.07691526,1969.7,1969.6,0.91969065]
[1746707450433,5.07682768,1969.8,1969.6,0.91969065]
[1746707450636,5.07661378,1969.9,1969.7,3.26866585]
[1746707450840,5.07665752,1969.8,1969.6,0.38423067]
[1746707451145,5.07665752,1969.8,1969.5,3.0]
[1746707451338,10.15352631,1969.8,1969.6,0.3]
[1746707451541,5.07665752,1969.8,1969.6,0.3]
[1746707451980,5.0764847,1969.9,1969.6,0.3]
[1746707452183,5.0762898,1970.0,1969.7,3.0]
[1746707452738,5.07573116,1970.2,1969.8,5.12727232]
[1746707452944,5.07573116,1970.2,1970.0,3.26866585]
[1746707453162,5.74215598,1970.3,1970.0,3.26866585]
[1746707453477,0.66666667,1970.3,1970.1,3.0]
[1746707453775,5.74223669,1970.3,1970.1,3.0]
[1746707455138,5.74223669,1970.3,1970.1,3.37169934]
[1746707455339,10.81784955,1970.3,1970.1,3.37169934]
[1746707455539,5.74223669,1970.3,1970.1,0.37169934]
[1746707455787,5.74223669,1970.3,1969.9,11.85769504]
[1746707456075,5.74223669,1970.3,1970.0,1.06238567]
[1746707456275,0.66666667,1970.3,1970.0,1.06238567]
[1746707456440,5.07587182,1970.2,1969.9,6.78139308]
[1746707456871,5.07599191,1970.1,1969.9,6.78139308]
[1746707457079,5.07622479,1970.0,1969.7,3.0]
[1746707457393,5.07569361,1970.2,1969.8,5.0764734]
[1746707457677,5.07602532,1970.1,1969.7,8.0767797]
[1746707457871,5.07602532,1970.1,1969.8,0.05075924]
[1746707458179,10.15202443,1970.1,1969.8,0.37954624]
[1746707458338,5.07639981,1969.9,1969.7,3.0]
[1746707458878,5.07666389,1969.8,1969.6,3.56866585]
[1746707459079,5.07694774,1969.7,1969.3,3.26866585]
[1746707459240,0.66666667,1970.3,1969.5,5.0773474]
[1746707459241,5.07656535,1969.9,1969.5,5.0773474]
[1746707459454,5.07656535,1969.9,1969.5,5.07726694]
[1746707459665,5.07656535,1969.9,1969.5,5.12800826]
[1746707460364,10.15317605,1969.9,1969.5,5.45393935]
[1746707460565,5.07589484,1970.1,1969.5,3.37669701]
[1746707460770,5.07675144,1969.8,1969.5,3.37669701]
[1746707460989,5.07675144,1969.8,1969.6,0.3376697]
[1746707461652,5.07691526,1969.7,1969.5,0.37669701]
[1746707461856,5.07730761,1969.6,1969.4,3.32686658]
[1746707462056,5.07701329,1969.7,1969.4,3.37763724]
[1746707462296,5.0772545,1969.6,1969.4,3.0]
[1746707462592,5.0772545,1969.6,1969.2,8.07803829]
[1746707462795,5.0772545,1969.6,1969.2,8.12881407]
[1746707463409,5.0772545,1969.6,1969.2,8.12881332]
[1746707463758,5.0772545,1969.6,1969.2,0.42857748]
[1746707463959,5.0772545,1969.6,1968.8,0.27946456]
[1746707463960,5.07717303,1969.6,1968.8,0.27946456]
[1746707464260,5.07923608,1968.8,1968.7,0.26496848]
[1746707464493,5.07913195,1968.9,1968.5,8.07999932]
[1746707464702,5.07913195,1968.9,1968.6,0.80799993]
[1746707464876,5.07928715,1968.8,1968.6,1.18058295]
[1746707465074,5.07928715,1968.8,1968.6,0.37258302]
[1746707465275,5.07913195,1968.9,1968.5,8.07996383]
[1746707465476,5.07968384,1968.7,1968.3,8.34918524]
[1746707465686,5.07968384,1968.7,1968.4,3.0]
[1746707465888,5.08026823,1968.4,1968.1,0.26506614]
[1746707466188,5.62923838,1968.8,1968.1,4.50262156]
[1746707466372,5.08048058,1968.4,1968.1,4.13015282]
[1746707466578,5.08078447,1968.2,1968.1,0.86148697]
[1746707466796,5.08078447,1968.2,1967.9,3.0]
[1746707466999,5.62923838,1968.8,1967.9,3.0]
[1746707467312,5.62923838,1968.8,1967.9,8.08141184]
[1746707467313,5.08060718,1968.3,1967.9,8.08141184]
[1746707467710,5.08060718,1968.3,1967.9,5.46218692]
[1746707468100,5.08060718,1968.3,1967.9,3.38077508]
[1746707468300,5.08078748,1968.2,1968.0,0.33807751]
[1746707468499,5.08001016,1968.5,1968.0,0.33807751]
[1746707468807,5.0804255,1968.4,1968.0,0.33807751]
[1746707469873,0.8108,1968.5,1968.1,3.26866585]
[1746707470080,10.161934,1968.2,1968.0,3.33807751]
[1746707470278,5.08062845,1968.3,1968.0,3.33807751]
[1746707470592,5.08079487,1968.2,1968.0,3.33807751]
[1746707470799,5.08068638,1968.3,1968.0,3.33807751]
[1746707471106,5.89091904,1968.5,1968.1,8.73419325]
[1746707471107,5.89093513,1968.5,1968.1,8.73419325]
[1746707471286,5.89093513,1968.5,1968.2,3.0]
[1746707471683,5.07989838,1968.6,1968.2,3.0]
[1746707471887,5.08001198,1968.5,1968.2,3.0]
[1746707472272,5.0773156,1969.6,1968.4,3.26866585]
[1746707472472,5.07936251,1968.8,1968.5,3.05079593]
[1746707472689,5.07949408,1968.7,1968.3,3.0]
[1746707472876,5.0801193,1968.5,1968.2,3.0]
[1746707473077,5.87136341,1968.8,1968.2,3.0]
[1746707473277,5.08070131,1968.3,1968.1,3.26866585]
[1746707473513,5.08064364,1968.3,1967.9,4.19757508]
[1746707473694,5.08064364,1968.3,1967.9,10.5338297]
[1746707473896,5.08079531,1968.2,1967.9,2.45236477]
[1746707474297,5.08079531,1968.2,1967.9,5.45236477]
[1746707474929,5.08079531,1968.2,1967.9,3.38077508]
[1746707475125,5.88341133,1968.4,1967.9,3.43158543]
[1746707475293,5.0806521,1968.3,1967.9,8.51299894]
[1746707475492,5.83379524,1968.9,1968.4,5.08024375]
[1746707475686,5.0797521,1968.6,1968.2,4.02996585]
[1746707475914,5.0797521,1968.6,1968.3,3.0]
[1746707475915,5.07988734,1968.6,1968.3,3.0]
[1746707476326,5.07962903,1968.7,1968.3,8.13112899]
[1746707476504,5.07962903,1968.7,1968.3,8.08032819]
[1746707476935,5.07962903,1968.7,1968.2,9.51356744]
[1746707477121,5.07976807,1968.6,1968.3,3.0]
[1746707477293,5.07976807,1968.6,1968.3,4.25643683]
[1746707477939,5.07965306,1968.7,1968.3,9.3369547]
[1746707478234,5.07923608,1968.8,1968.2,7.43296244]
[1746707478407,5.08041892,1968.4,1968.2,7.02996585]
[1746707478726,5.08006218,1968.5,1967.9,0.38077508]
[1746707478727,5.87432153,1968.5,1967.9,0.38077508]
[1746707478899,5.0809387,1968.2,1967.8,5.8940306]
[1746707479106,5.08080298,1968.2,1967.8,5.89397469]
[1746707479320,5.08080298,1968.2,1967.9,3.0]
[1746707479694,5.08132783,1968.0,1967.8,2.21247039]
[1746707480026,5.08142239,1968.0,1967.8,3.7615]
[1746707480233,5.08110303,1968.1,1967.8,3.7615]
[1746707480234,5.08116689,1968.1,1967.8,3.7615]
[1746707481099,5.08116689,1968.1,1967.8,4.15135044]
[1746707482000,5.08128159,1968.1,1967.8,4.15135044]
[1746707482394,5.08135065,1968.0,1967.8,4.15135044]
[1746707482600,5.08135065,1968.0,1967.8,3.38985044]
[1746707482824,5.08121096,1968.1,1967.8,3.38985044]
[1746707484945,5.0813119,1968.0,1967.8,3.38985044]
[1746707485713,5.08116336,1968.1,1967.5,3.0]
[1746707485714,5.08232963,1967.7,1967.5,3.0]
[1746707485914,5.08232963,1967.7,1967.4,3.53380777]
[1746707485915,5.08230809,1967.7,1967.4,3.53380777]
[1746707486116,5.08130081,1968.0,1967.4,3.0]
[1746707486318,10.16454422,1967.7,1967.4,3.0]
[1746707486521,5.082237,1967.7,1967.4,3.0]
[1746707486843,5.08253102,1967.6,1967.3,0.8236]
[1746707487055,5.08253102,1967.6,1967.2,8.08327161]
[1746707487549,5.08253102,1967.6,1967.2,8.08320553]
[1746707487842,5.08253102,1967.6,1967.3,5.08310197]
[1746707488043,5.08253102,1967.6,1967.3,5.45949877]
[1746707488247,0.7942,1967.9,1967.5,5.08250708]
[1746707488417,5.0814741,1968.0,1967.6,5.08222731]
[1746707488817,5.0814741,1968.0,1967.5,8.88941964]
[1746707489028,5.08166328,1967.9,1967.5,10.53093357]
[1746707489342,5.0814741,1968.0,1967.5,3.0]
[1746707489343,0.55,1968.0,1967.5,3.0]
[1746707489517,0.55,1968.0,1967.5,8.13322428]
[1746707489518,5.08166166,1967.9,1967.5,8.13322428]
[1746707489920,5.08183769,1967.8,1967.5,8.13322428]
[1746707490611,5.08166166,1967.9,1967.5,8.13322428]
[1746707490815,5.08166166,1967.9,1967.5,9.78168434]
[1746707492131,5.08184515,1967.8,1967.5,4.64846006]
[1746707493055,5.08184515,1967.8,1967.5,3.0]
[1746707494575,5.08216816,1967.7,1967.5,3.0]
[1746707494758,5.0823338,1967.6,1967.5,3.0]
[1746707495570,5.08336722,1967.2,1967.1,1.05271391]
[1746707495747,5.08303403,1967.4,1967.1,0.29251391]
[1746707495748,0.7539,1967.3,1967.1,0.29251391]
[1746707495950,10.92035764,1967.3,1967.1,0.29251391]
[1746707496127,5.83712972,1967.3,1967.1,0.02732565]
[1746707497370,5.08336722,1967.2,1967.1,0.02732565]
[1746707500683,5.83483636,1967.5,1967.1,5.88972706]
[1746707500983,5.08319339,1967.3,1967.1,0.02732565]
[1746707501177,5.08295302,1967.4,1967.1,3.02732565]
[1746707501383,5.08295302,1967.4,1967.1,8.1109511]
[1746707501965,5.08295302,1967.4,1967.1,3.02732565]
[1746707502686,5.83469315,1967.5,1967.1,3.02732565]
[1746707502885,5.83469315,1967.5,1967.1,8.11086381]
[1746707503383,5.08286047,1967.4,1967.1,3.02732565]
[1746707505082,5.08312285,1967.3,1967.1,3.02732565]
[1746707505242,5.08336722,1967.2,1967.1,0.02732565]
[1746707505443,0.8238,1967.7,1967.1,3.2959915]
[1746707505704,0.8238,1967.9,1967.5,3.26866585]
[1746707505844,5.08165802,1967.9,1967.6,0.8264]
[1746707506051,5.08142207,1968.0,1967.6,0.8264]
[1746707506288,24.20796196,1968.1,1967.7,8.08186968]
[1746707506587,24.20796196,1968.1,1967.7,4.39904586]
[1746707506893,5.08142117,1968.0,1967.7,4.39904586]
[1746707507669,24.2079787,1968.1,1967.7,9.48103432]
[1746707509074,23.3841787,1968.1,1967.7,9.48103432]
[1746707510190,23.3841787,1968.1,1967.7,4.39904586]
[1746707510191,5.0811787,1968.1,1967.7,4.39904586]
[1746707510358,5.08147064,1968.0,1967.6,8.90869863]
[1746707510559,5.08118391,1968.1,1967.7,5.08198202]
[1746707510782,5.07914767,1968.9,1968.1,3.0]
[1746707510783,0.8322,1968.9,1968.1,3.0]
[1746707510982,5.91127518,1968.9,1968.4,5.08023516]
[1746707511171,10.1588826,1968.8,1968.4,5.08023516]
[1746707511368,5.07939315,1968.8,1968.4,5.08023516]
[1746707511868,5.0788661,1969.0,1968.5,8.07984585]
[1746707512087,5.0788661,1969.0,1968.5,11.34851027]
[1746707512088,5.07901683,1968.9,1968.5,11.34851027]
[1746707512288,5.07901683,1968.9,1968.5,11.34849917]
[1746707512681,5.07846224,1969.1,1968.5,3.0]
[1746707512877,5.07949711,1968.7,1968.5,3.0]
[1746707513083,5.0797521,1968.6,1968.5,3.0]
[1746707513395,5.07958934,1968.7,1968.5,3.0]
[1746707513600,5.07941081,1968.8,1968.5,3.0]
[1746707514858,10.15888038,1968.8,1968.5,3.0]
[1746707515094,5.0797521,1968.6,1968.5,3.0]
[1746707516490,5.07966702,1968.7,1968.5,3.0]
[1746707516690,5.07940638,1968.8,1968.5,3.0]
[1746707516886,5.07940638,1968.8,1968.5,3.37731342]
[1746707517135,0.8061,1969.0,1968.5,7.4917346]
[1746707517298,5.90030224,1969.2,1968.7,3.0]
[1746707517488,5.0785819,1969.1,1968.7,8.07935173]
[1746707517994,5.0785819,1969.1,1968.7,13.20945294]
[1746707518195,5.0785819,1969.1,1968.7,13.15866392]
[1746707518397,5.90035276,1969.2,1968.9,3.0]
[1746707518563,5.07743082,1969.5,1969.1,11.34696389]
[1746707518757,5.07729862,1969.6,1969.3,3.0]
[1746707519062,5.07691671,1969.7,1969.3,5.12855676]
[1746707519303,5.07625446,1970.0,1969.7,3.0]
[1746707519511,5.07578649,1970.2,1969.7,11.3454821]
[1746707519658,5.07657622,1969.9,1969.6,0.801]
[1746707519861,5.0768467,1969.8,1969.6,0.801]
[1746707520175,5.0765007,1969.9,1969.4,8.07767697]
[1746707520375,5.07629639,1970.0,1969.6,8.07706023]
[1746707520581,5.07641367,1969.9,1969.5,8.07726722]
[1746707520918,5.07601287,1970.1,1969.8,0.7839]
[1746707521081,5.07601287,1970.1,1969.8,0.83466102]
[1746707521482,5.07489983,1970.5,1970.1,3.0]
[1746707521728,5.07443136,1970.7,1970.3,3.0]
[1746707521895,5.07443136,1970.7,1970.3,5.89821469]
[1746707522094,24.14162978,1970.9,1970.1,3.7721]
[1746707522295,5.07554173,1970.3,1969.9,3.0]
[1746707522496,5.07554173,1970.3,1969.9,3.88486453]
[1746707522807,5.07554173,1970.3,1969.9,0.88486453]
[1746707523022,5.07563417,1970.2,1969.8,8.8486003]
[1746707523202,5.07552314,1970.3,1969.8,8.8486003]
[1746707523515,5.07583903,1970.2,1969.9,0.05075705]
[1746707523681,5.07583903,1970.2,1969.8,3.7721]
[1746707523884,5.07552991,1970.3,1969.9,0.05075705]
[1746707524085,5.07552991,1970.3,1970.0,3.0]
[1746707524313,5.07526511,1970.4,1970.0,3.0]
[1746707525021,10.1506079,1970.4,1970.0,3.0]
[1746707525318,5.07526511,1970.4,1970.0,8.07612055]
[1746707525510,5.07496709,1970.5,1970.2,0.7778]
[1746707525987,5.07517655,1970.4,1970.2,0.7778]
[1746707526189,5.07502112,1970.5,1970.2,0.7778]
[1746707526590,5.07408222,1970.8,1970.2,0.7778]
[1746707526824,5.07531298,1970.4,1970.2,0.7778]
[1746707527699,0.7988,1970.9,1970.3,3.0]
[1746707528021,5.07396232,1970.9,1970.6,0.7673]
[1746707528619,5.07308121,1971.2,1970.7,5.12497653]
[1746707528620,5.0734763,1971.1,1970.7,5.12497653]
[1746707528820,5.07387037,1970.9,1970.6,1.13965338]
[1746707529023,5.87160704,1971.3,1970.6,2.06109489]
[1746707529323,5.0742992,1970.8,1970.6,1.13965338]
[1746707529703,5.07401443,1970.9,1970.6,4.13965338]
[1746707530591,5.07373412,1971.0,1970.6,4.13965338]
[1746707530785,5.07344507,1971.1,1970.8,0.7718]
[1746707531027,5.07344507,1971.1,1970.8,1.7071367]
[1746707531190,5.89011788,1971.7,1971.3,3.7723]
[1746707531191,5.07194449,1971.7,1971.3,3.7723]
[1746707531390,5.07205253,1971.6,1971.3,3.7723]
[1746707531628,5.07253728,1971.4,1971.3,0.7723]
[1746707531931,5.07300099,1971.3,1971.1,0.8014]
[1746707532094,5.07204506,1971.6,1971.1,0.8014]
[1746707532292,5.07297589,1971.3,1971.1,0.8014]
[1746707532587,5.07262606,1971.4,1971.1,3.8014]
[1746707532914,5.07228289,1971.5,1971.2,3.0]
[1746707532915,5.07242739,1971.5,1971.2,3.0]
[1746707533226,10.14493113,1971.5,1971.2,3.0]
[1746707533524,5.07256623,1971.4,1971.1,4.6888922]
[1746707533827,5.07150826,1971.8,1971.1,6.76210433]
[1746707534012,5.07232014,1971.5,1971.2,3.0]
[1746707534323,5.07137539,1971.9,1971.5,3.0]
[1746707534521,5.07137539,1971.9,1971.6,3.84981681]
[1746707534723,5.07137539,1971.9,1971.6,3.7991]
[1746707534930,5.07137539,1971.9,1971.6,0.7991]
[1746707535127,0.430697,1972.6,1971.9,3.7897]
[1746707535332,5.07073677,1972.1,1972.0,0.37897]
[1746707535496,5.07176548,1971.7,1971.6,1.17439154]
[1746707535826,5.07176548,1971.7,1971.6,0.7897]
[1746707536039,5.07238801,1971.5,1971.3,0.7897]
[1746707536715,5.07318163,1971.2,1971.0,0.7941]
[1746707536910,5.0729414,1971.3,1971.0,0.7941]
[1746707537110,5.07330931,1971.1,1970.7,0.8245]
[1746707537321,5.07357436,1971.0,1970.7,1.45162563]
[1746707537532,0.55,1971.3,1970.9,0.5]
[1746707537738,5.07337563,1971.1,1970.9,0.5]
[1746707538054,5.07356671,1971.0,1970.9,0.5]
[1746707538253,5.07398175,1970.9,1970.6,0.37235338]
[1746707538419,5.07366475,1971.0,1970.6,3.42309768]
[1746707538735,5.07366475,1971.0,1970.6,0.92553505]
[1746707538900,0.8188,1971.3,1970.7,5.07427978]
[1746707538901,5.07337921,1971.1,1970.7,5.07427978]
[1746707539101,0.8188,1971.3,1970.8,8.0740629]
[1746707539102,5.07290867,1971.3,1970.8,8.0740629]
[1746707539338,5.07290867,1971.3,1971.0,3.0]
[1746707539504,5.07353288,1971.1,1970.9,0.82]
[1746707539702,5.07433906,1970.7,1970.6,1.19907564]
[1746707539901,5.07426433,1970.8,1970.6,1.19907564]
[1746707540133,5.07433906,1970.7,1970.6,1.19907564]
[1746707540436,5.07392256,1970.9,1970.6,1.19907564]
[1746707540641,5.0747598,1970.6,1970.2,0.7584]
[1746707540935,5.07450095,1970.7,1970.3,3.0]
[1746707541143,5.07382414,1970.9,1970.2,0.7584]
[1746707541337,5.86368913,1971.0,1970.2,5.83387516]
[1746707541499,5.07386115,1970.9,1970.3,3.0]
[1746707541846,5.07474868,1970.6,1970.2,3.7584]
[1746707542027,0.7899,1971.0,1970.2,0.7584]
[1746707542201,0.7899,1971.0,1970.2,1.13931509]
[1746707542202,5.86370365,1971.0,1970.2,1.13931509]
[1746707542403,5.07495315,1970.5,1970.2,1.13931509]
[1746707542636,5.07495315,1970.5,1970.3,0.5]
[1746707543351,5.07511165,1970.4,1970.3,0.5]
[1746707543724,5.0754198,1970.3,1969.9,5.89919182]
[1746707544055,5.07652865,1969.9,1969.6,0.8228]
[1746707544258,5.07569272,1970.2,1969.6,0.8228]
[1746707544444,5.07743951,1969.5,1969.3,0.7682]
[1746707544752,5.07740186,1969.6,1969.3,0.7682]
[1746707544954,5.07735832,1969.6,1969.3,1.15009734]
[1746707545156,0.55,1970.0,1969.3,1.15189967]
[1746707545455,5.07764641,1969.5,1969.0,0.7722]
[1746707545640,5.07764641,1969.5,1969.0,5.90156987]
[1746707545855,5.07770636,1969.4,1969.1,3.0]
[1746707546048,5.07732716,1969.6,1969.1,5.07831461]
[1746707546253,5.07732716,1969.6,1969.2,5.37818386]
[1746707546540,5.07732716,1969.6,1969.3,3.0]
[1746707546743,5.07732716,1969.6,1969.2,5.75975144]
[1746707546941,5.07732716,1969.6,1969.3,3.0]
[1746707547157,5.07651331,1969.9,1969.5,5.077426]
[1746707547534,5.07616977,1970.0,1969.5,5.077426]
[1746707547535,5.07628435,1970.0,1969.6,8.12785328]
[1746707548052,5.07517563,1970.4,1970.0,8.07602978]
[1746707548223,5.07499989,1970.5,1970.0,9.27234988]
[1746707548419,0.7943,1970.9,1970.2,5.07545787]
[1746707548620,5.07377293,1971.0,1970.5,8.07472583]
[1746707548842,5.89266271,1971.2,1970.6,0.7708]
[1746707549015,5.07410801,1970.8,1970.6,0.7708]
[1746707549231,0.751,1971.8,1970.6,0.7708]
[1746707549554,0.751,1971.8,1971.4,5.07248074]
[1746707549756,5.07187318,1971.7,1971.2,8.07284724]
[1746707549969,0.751,1972.2,1971.2,8.45681958]
[1746707550263,5.0723139,1971.5,1971.2,3.0]
[1746707550460,5.0718887,1971.7,1971.2,3.0]
[1746707550640,5.0718887,1971.7,1971.3,3.0]
[1746707550837,5.07259731,1971.4,1971.1,3.8209]
[1746707551055,5.07305194,1971.2,1970.8,0.817]
[1746707551276,0.7913,1972.0,1971.1,3.0]
[1746707551461,5.07215022,1971.6,1971.1,8.12380069]
[1746707551656,5.07232849,1971.5,1971.1,3.0]
[1746707551841,5.07249399,1971.5,1971.1,3.0]
[1746707552373,0.7913,1972.0,1971.0,3.80559269]
[1746707552526,5.07139338,1971.9,1971.4,8.07243105]
[1746707552730,10.14288818,1971.9,1971.4,8.90175094]
[1746707553034,5.07218224,1971.6,1971.2,5.07302706]
[1746707553257,5.07218224,1971.6,1971.3,3.0]
[1746707553565,5.07136052,1971.9,1971.3,8.12335004]
[1746707553771,5.07136052,1971.9,1971.5,5.07227007]
[1746707553977,5.07136052,1971.9,1971.4,8.88466812]
[1746707554130,5.07136052,1971.9,1971.5,5.07226226]
[1746707554330,1.182397,1972.6,1971.8,5.07150622]
[1746707554572,5.07061004,1972.2,1971.9,0.50715062]
[1746707554780,5.06970849,1972.5,1971.6,12.25700602]
[1746707554781,5.0712835,1971.9,1971.6,3.8055]
[1746707555064,5.0712835,1971.9,1971.5,5.07223792]
[1746707555065,5.07162065,1971.8,1971.4,3.812335]
[1746707555439,5.07162065,1971.8,1971.4,8.93556806]
[1746707555763,5.07191545,1971.7,1971.4,3.86305388]
[1746707555925,5.07191545,1971.7,1971.3,9.27560053]
[1746707555926,0.7984,1972.0,1971.3,0.8234]
[1746707556128,0.7984,1972.0,1971.3,3.0]
[1746707556358,5.07170705,1971.8,1971.4,5.07250773]
[1746707556575,5.07135543,1971.9,1971.3,3.0]
[1746707556730,5.07151948,1971.8,1971.5,3.0]
[1746707556931,5.0713976,1971.9,1971.5,3.0]
[1746707557152,5.071192,1972.0,1971.6,5.07199161]
[1746707557433,5.0710345,1972.0,1971.6,0.05071911]
[1746707557629,5.07186623,1971.7,1971.2,3.7859]
[1746707557833,5.07186623,1971.7,1971.3,0.0507191]
[1746707558339,5.07190438,1971.7,1971.3,0.0507191]
[1746707558862,5.0716301,1971.8,1971.4,5.07251999]
[1746707559027,5.0716301,1971.8,1971.3,3.0]
[1746707559028,5.07195999,1971.7,1971.3,3.0]
[1746707559232,5.07186821,1971.7,1971.3,0.97827115]
[1746707559426,5.07213228,1971.6,1971.2,3.7859]
[1746707559645,5.07265555,1971.4,1971.2,0.7859]
[1746707559839,5.0727946,1971.3,1971.0,0.37524927]
[1746707560041,5.07331997,1971.1,1970.9,0.7652]
[1746707560354,5.07260797,1971.4,1970.5,0.7652]
[1746707560355,0.55,1971.3,1970.5,0.7652]
[1746707560560,5.07355545,1971.1,1970.2,0.7662]
[1746707560763,5.07502699,1970.5,1970.2,1.1425108]
[1746707560972,5.07536923,1970.3,1969.9,5.84246042]
[1746707561276,5.07571903,1970.2,1970.0,0.27799154]
[1746707561566,5.07552691,1970.3,1970.0,0.27799154]
[1746707561774,5.07552691,1970.3,1969.9,10.27240797]
[1746707561971,5.07566665,1970.2,1969.9,5.24681061]
[1746707562141,5.0746257,1970.6,1969.9,5.24681061]
[1746707562346,5.07562929,1970.2,1969.9,5.24681061]
[1746707562957,5.0759918,1970.1,1969.9,0.7662]
[1746707563272,5.07665752,1969.8,1969.7,0.2648603]
[1746707563572,5.07665752,1969.8,1969.5,0.792]
[1746707563573,5.07624885,1970.0,1969.6,5.07711651]
[1746707563779,5.07624885,1970.0,1969.5,8.86929761]
[1746707563963,0.55,1970.2,1969.3,4.36328385]
[1746707564161,5.0761617,1970.0,1969.3,4.41405709]
[1746707564476,5.07728716,1969.6,1969.3,4.36328385]
[1746707564866,5.07743293,1969.5,1969.2,0.7904]
[1746707565079,0.7747,1969.7,1968.9,9.2658794]
[1746707565387,5.07762499,1969.5,1969.1,5.0784108]
[1746707565585,5.07717303,1969.6,1969.0,5.07861582]
[1746707565742,5.07702753,1969.7,1969.2,5.12886892]
[1746707565943,5.07709815,1969.7,1969.2,5.07818913]
[1746707566144,5.0767876,1969.8,1969.4,3.7823]
[1746707566379,5.0767876,1969.8,1969.4,8.91062614]
[1746707566543,5.0767876,1969.8,1969.4,10.3094706]
[1746707567052,5.0765186,1969.9,1969.6,3.0]
[1746707567246,5.07603833,1970.1,1969.6,5.12793464]
[1746707567445,5.07603833,1970.1,1969.7,5.07689784]
[1746707567646,5.07603833,1970.1,1969.8,3.0]
[1746707568058,5.07577016,1970.2,1969.8,3.0]
[1746707568273,5.07593409,1970.1,1969.8,3.0]
[1746707568657,5.07549798,1970.3,1969.8,3.0]
[1746707568943,5.07589441,1970.1,1969.8,3.0]
[1746707569147,5.07589441,1970.1,1969.8,3.05075943]
[1746707569687,5.07589441,1970.1,1969.8,3.0]
[1746707569848,5.07441822,1970.7,1970.0,3.0]
[1746707570045,5.07408125,1970.9,1970.5,0.7798]
[1746707570246,5.07426568,1970.8,1970.5,0.7798]
[1746707570486,5.07446583,1970.7,1970.5,0.7798]
[1746707570662,5.07426568,1970.8,1970.2,3.7798]
[1746707570663,5.07495101,1970.5,1970.2,3.7798]
[1746707570862,5.07566803,1970.2,1969.9,3.7934]
[1746707571074,0.8227,1970.7,1969.9,10.22618154]
[1746707571264,0.8227,1970.7,1969.9,10.22612885]
[1746707571583,5.07547926,1970.3,1969.9,10.17537368]
[1746707571771,10.15107151,1970.3,1969.9,8.86965583]
[1746707572090,5.07511165,1970.4,1969.6,0.8179]
[1746707572289,5.07608564,1970.1,1969.6,5.89486323]
[1746707572493,5.07572829,1970.2,1969.9,3.0]
[1746707572678,5.07550359,1970.3,1969.9,8.12705108]
[1746707572855,5.0752171,1970.4,1969.9,9.44741105]
[1746707573186,5.07549205,1970.3,1969.9,9.44741105]
[1746707573350,5.07563082,1970.2,1969.9,4.32035997]
[1746707573689,5.07553413,1970.3,1970.1,0.8182]
[1746707573885,5.07502457,1970.5,1970.2,3.0]
[1746707574098,5.07486519,1970.5,1970.2,3.05074906]
[1746707574396,5.07444863,1970.7,1970.4,3.0]
[1746707574756,10.14855812,1970.8,1970.4,3.0]
[1746707575089,5.07465747,1970.6,1970.2,8.46240505]
[1746707575290,5.07465747,1970.6,1970.2,8.51315311]
[1746707575488,0.8076,1971.1,1970.4,3.0]
[1746707575489,10.14802891,1970.9,1970.4,3.0]
[1746707575797,5.90232537,1971.3,1970.6,0.7822]
[1746707575953,5.07371976,1971.0,1970.6,5.85669759]
[1746707576364,5.07371976,1971.0,1970.6,0.7822]
[1746707576565,5.07377354,1971.0,1970.6,5.85677719]